[Event "Titled Tuesday Blitz February 15 Early 2022"]
[White "Musovic, Armin"]
[Black "Dovbnia, Nikita"]
[WhiteFideId "939935"]
[BlackFideId "54104599"]
[WhiteElo "2250"]
[BlackElo "2111"]
[Result "1-0"]
[Round "03"]
[TimeControl "180+1"]
[Date "2022.02.15"]
[WhiteClock "0:01:15"]
[BlackClock "0:00:04"]

1. a3 {[%clk 0:03:00]}  e5 {[%clk 0:02:58]} 2. Nc3 {[%clk 0:03:01]}  Nf6 {[%clk 0:02:58]} 3. d4 {[%clk 0:03:01]}  exd4 {[%clk 0:02:57]} 4. Qxd4 {[%clk 0:03:02]}  Nc6 {[%clk 0:02:57]} 5. Qa4 {[%clk 0:03:03]}  h6 {[%clk 0:02:52]} 6. Bf4 {[%clk 0:02:59]}  d5 {[%clk 0:02:44]} 7. O-O-O {[%clk 0:02:57]}  Bd6 {[%clk 0:02:28]} 8. Nb5 {[%clk 0:02:37]}  O-O {[%clk 0:01:38]} 9. Nxd6 {[%clk 0:02:36]}  cxd6 {[%clk 0:01:39]} 10. f3 {[%clk 0:02:36]}  Bf5 {[%clk 0:01:37]} 11. e4 {[%clk 0:02:31]}  Be6 {[%clk 0:01:27]} 12. exd5 {[%clk 0:02:26]}  Nxd5 {[%clk 0:01:28]} 13. Bg3 {[%clk 0:02:25]}  Rc8 {[%clk 0:01:17]} 14. Bd3 {[%clk 0:02:12]}  Ne5 {[%clk 0:00:52]} 15. Bxe5 {[%clk 0:02:05]}  dxe5 {[%clk 0:00:52]} 16. Qe4 {[%clk 0:02:00]}  Qg5+ {[%clk 0:00:33]} 17. Kb1 {[%clk 0:01:54]}  Nf6 {[%clk 0:00:31]} 18. Qe2 {[%clk 0:01:49]}  Qf4 {[%clk 0:00:29]} 19. Nh3 {[%clk 0:01:48]}  Qd4 {[%clk 0:00:28]} 20. Qf2 {[%clk 0:01:45]}  Qxf2 {[%clk 0:00:24]} 21. Nxf2 {[%clk 0:01:45]}  Rfd8 {[%clk 0:00:24]} 22. Rhe1 {[%clk 0:01:43]}  Nd7 {[%clk 0:00:23]} 23. Bb5 {[%clk 0:01:40]}  f6 {[%clk 0:00:22]} 24. Ne4 {[%clk 0:01:39]}  a6 {[%clk 0:00:17]} 25. Bf1 {[%clk 0:01:37]}  Nb6 {[%clk 0:00:15]} 26. Rxd8+ {[%clk 0:01:31]}  Rxd8 {[%clk 0:00:15]} 27. g4 {[%clk 0:01:32]}  Nd5 {[%clk 0:00:15]} 28. Rd1 {[%clk 0:01:31]}  Rc8 {[%clk 0:00:15]} 29. c4 {[%clk 0:01:30]}  Nf4 {[%clk 0:00:15]} 30. b3 {[%clk 0:01:29]}  b5 {[%clk 0:00:15]} 31. Nd6 {[%clk 0:01:28]}  Rd8 {[%clk 0:00:13]} 32. c5 {[%clk 0:01:27]}  Bxb3 {[%clk 0:00:13]} 33. Rd2 {[%clk 0:01:27]}  Bd5 {[%clk 0:00:11]} 34. a4 {[%clk 0:01:27]}  Bxf3 {[%clk 0:00:10]} 35. axb5 {[%clk 0:01:26]}  axb5 {[%clk 0:00:11]} 36. Bxb5 {[%clk 0:01:24]}  e4 {[%clk 0:00:12]} 37. Bc4+ {[%clk 0:01:24]}  Kh7 {[%clk 0:00:11]} 38. Rd4 {[%clk 0:01:20]}  Ne2 {[%clk 0:00:09]} 39. Bxe2 {[%clk 0:01:17]}  Bxe2 {[%clk 0:00:09]} 40. Kb2 {[%clk 0:01:18]}  Bxg4 {[%clk 0:00:08]} 41. Rxe4 {[%clk 0:01:17]}  Bh5 {[%clk 0:00:07]} 42. Kc3 {[%clk 0:01:15]}  Bg6 {[%clk 0:00:06]} 43. Re7 {[%clk 0:01:15]}  f5 {[%clk 0:00:06]} 44. Kd4 {[%clk 0:01:15]}  f4 {[%clk 0:00:07]} 45. Re1 {[%clk 0:01:12]}  Bc2 {[%clk 0:00:05]} 46. Re2 {[%clk 0:01:12]}  Bd1 {[%clk 0:00:05]} 47. Rd2 {[%clk 0:01:12]}  Bh5 {[%clk 0:00:04]} 48. Rf2 {[%clk 0:01:12]}  f3 {[%clk 0:00:05]} 49. Ke5 {[%clk 0:01:11]}  g5 {[%clk 0:00:04]} 50. c6 {[%clk 0:01:11]}  g4 {[%clk 0:00:03]} 51. c7 {[%clk 0:01:11]}  Ra8 {[%clk 0:00:04]} 52. c8=Q {[%clk 0:01:12]}  Rxc8 {[%clk 0:00:04]} 53. Nxc8 {[%clk 0:01:12]}  Kg6 {[%clk 0:00:05]} 54. Kf4 {[%clk 0:01:13]}  Kf6 {[%clk 0:00:05]} 55. Nd6 {[%clk 0:01:13]}  Ke6 {[%clk 0:00:06]} 56. Ne4 {[%clk 0:01:14]}  Kd5 {[%clk 0:00:07]} 57. Ng3 {[%clk 0:01:14]}  Be8 {[%clk 0:00:04]} 58. Kxg4 {[%clk 0:01:14]}  Kd4 {[%clk 0:00:04]} 59. Kxf3 {[%clk 0:01:15]} 1-0


[Site "https://www.chess.com"]

[Event "Titled Tuesday Blitz February 15 Early 2022"]
[White "Navara, David"]
[Black "Dvirnyy, Danyyil"]
[WhiteFideId "309095"]
[BlackFideId "817570"]
[WhiteElo "2686"]
[BlackElo "2546"]
[Result "1/2-1/2"]
[Round "03"]
[TimeControl "180+1"]
[Date "2022.02.15"]
[WhiteClock "0:00:05"]
[BlackClock "0:00:10"]

1. d4 {[%clk 0:03:00]}  Nf6 {[%clk 0:02:57]} 2. c4 {[%clk 0:03:00]}  g6 {[%clk 0:02:57]} 3. Nc3 {[%clk 0:02:59]}  d5 {[%clk 0:02:58]} 4. cxd5 {[%clk 0:03:00]}  Nxd5 {[%clk 0:02:58]} 5. e4 {[%clk 0:03:01]}  Nxc3 {[%clk 0:02:58]} 6. bxc3 {[%clk 0:03:02]}  Bg7 {[%clk 0:02:59]} 7. Be3 {[%clk 0:03:02]}  c5 {[%clk 0:02:57]} 8. Qd2 {[%clk 0:03:02]}  Qa5 {[%clk 0:02:55]} 9. Rc1 {[%clk 0:03:00]}  cxd4 {[%clk 0:02:51]} 10. cxd4 {[%clk 0:03:01]}  Qxd2+ {[%clk 0:02:44]} 11. Bxd2 {[%clk 0:02:51]}  O-O {[%clk 0:02:41]} 12. Nf3 {[%clk 0:02:50]}  Bg4 {[%clk 0:02:20]} 13. Be3 {[%clk 0:02:50]}  Rc8 {[%clk 0:02:16]} 14. Rxc8+ {[%clk 0:02:49]}  Bxc8 {[%clk 0:02:16]} 15. Bb5 {[%clk 0:01:51]}  Bd7 {[%clk 0:02:12]} 16. a4 {[%clk 0:01:33]}  a6 {[%clk 0:01:46]} 17. Bxd7 {[%clk 0:01:33]}  Nxd7 {[%clk 0:01:47]} 18. Ke2 {[%clk 0:01:33]}  Rc8 {[%clk 0:01:32]} 19. Rb1 {[%clk 0:01:31]}  b6 {[%clk 0:01:32]} 20. Kd3 {[%clk 0:01:17]}  e6 {[%clk 0:01:31]} 21. Nd2 {[%clk 0:01:16]}  Rd8 {[%clk 0:01:11]} 22. Ke2 {[%clk 0:01:11]}  Rc8 {[%clk 0:01:08]} 23. e5 {[%clk 0:00:55]}  Bf8 {[%clk 0:01:03]} 24. f4 {[%clk 0:00:37]}  Rc3 {[%clk 0:01:02]} 25. Ne4 {[%clk 0:00:35]}  Rc4 {[%clk 0:01:00]} 26. Kd3 {[%clk 0:00:23]}  Rc6 {[%clk 0:00:26]} 27. g4 {[%clk 0:00:17]}  Be7 {[%clk 0:00:24]} 28. g5 {[%clk 0:00:16]}  Kf8 {[%clk 0:00:22]} 29. Nc3 {[%clk 0:00:11]}  Ke8 {[%clk 0:00:19]} 30. d5 {[%clk 0:00:11]}  exd5 {[%clk 0:00:20]} 31. Nxd5 {[%clk 0:00:12]}  Bd8 {[%clk 0:00:21]} 32. Rb3 {[%clk 0:00:06]}  Rc5 {[%clk 0:00:09]} 33. Bxc5 {[%clk 0:00:06]}  Nxc5+ {[%clk 0:00:09]} 34. Kc4 {[%clk 0:00:07]}  Nxb3 {[%clk 0:00:10]} 35. Kxb3 {[%clk 0:00:07]}  Kd7 {[%clk 0:00:11]} 36. Kc4 {[%clk 0:00:02]}  Kc6 {[%clk 0:00:12]} 37. Nf6 {[%clk 0:00:02]}  b5+ {[%clk 0:00:11]} 38. axb5+ {[%clk 0:00:02]}  axb5+ {[%clk 0:00:12]} 39. Kb3 {[%clk 0:00:02]}  Bxf6 {[%clk 0:00:12]} 40. gxf6 {[%clk 0:00:03]}  Kd5 {[%clk 0:00:12]} 41. Kb4 {[%clk 0:00:03]}  h6 {[%clk 0:00:13]} 42. h4 {[%clk 0:00:03]}  g5 {[%clk 0:00:09]} 43. fxg5 {[%clk 0:00:02]}  hxg5 {[%clk 0:00:09]} 44. hxg5 {[%clk 0:00:03]}  Kxe5 {[%clk 0:00:10]} 45. g6 {[%clk 0:00:03]}  Kxf6 {[%clk 0:00:09]} 46. gxf7 {[%clk 0:00:04]}  Kxf7 {[%clk 0:00:10]} 47. Kxb5 {[%clk 0:00:05]} 1/2-1/2


[Site "https://www.chess.com"]

[Event "Titled Tuesday Blitz February 15 Early 2022"]
[White "Nazari, Arad"]
[Black "Dushyant Sharma"]
[WhiteFideId "12577324"]
[BlackFideId "25065130"]
[WhiteElo "2120"]
[BlackElo "2012"]
[Result "0-1"]
[Round "03"]
[TimeControl "180+1"]
[Date "2022.02.15"]
[WhiteClock "0:00:03"]
[BlackClock "0:00:11"]

1. e4 {[%clk 0:03:00]}  d5 {[%clk 0:02:59]} 2. exd5 {[%clk 0:02:59]}  Nf6 {[%clk 0:03:00]} 3. Nc3 {[%clk 0:02:59]}  Nxd5 {[%clk 0:02:59]} 4. Bc4 {[%clk 0:02:59]}  c6 {[%clk 0:02:59]} 5. Nge2 {[%clk 0:02:54]}  Bg4 {[%clk 0:02:57]} 6. f3 {[%clk 0:02:51]}  Bh5 {[%clk 0:02:57]} 7. d4 {[%clk 0:02:50]}  e6 {[%clk 0:02:56]} 8. O-O {[%clk 0:02:39]}  Be7 {[%clk 0:02:55]} 9. Bxd5 {[%clk 0:02:33]}  exd5 {[%clk 0:02:55]} 10. Nf4 {[%clk 0:02:33]}  Bg6 {[%clk 0:02:55]} 11. Nxg6 {[%clk 0:02:33]}  hxg6 {[%clk 0:02:56]} 12. Bf4 {[%clk 0:02:34]}  O-O {[%clk 0:02:56]} 13. Qd2 {[%clk 0:02:33]}  Nd7 {[%clk 0:02:56]} 14. Nd1 {[%clk 0:02:27]}  Rc8 {[%clk 0:02:56]} 15. Nf2 {[%clk 0:02:26]}  Nf6 {[%clk 0:02:52]} 16. Nd3 {[%clk 0:02:22]}  Bd6 {[%clk 0:02:52]} 17. Be5 {[%clk 0:02:17]}  Bxe5 {[%clk 0:02:46]} 18. dxe5 {[%clk 0:02:17]}  Qb6+ {[%clk 0:02:44]} 19. Kh1 {[%clk 0:02:13]}  Nd7 {[%clk 0:02:45]} 20. Rae1 {[%clk 0:01:57]}  Rce8 {[%clk 0:02:44]} 21. f4 {[%clk 0:01:56]}  Nc5 {[%clk 0:02:32]} 22. Nxc5 {[%clk 0:01:42]}  Qxc5 {[%clk 0:02:33]} 23. c3 {[%clk 0:01:42]}  f6 {[%clk 0:02:29]} 24. e6 {[%clk 0:01:14]}  Qd6 {[%clk 0:02:29]} 25. Qe3 {[%clk 0:01:12]}  Re7 {[%clk 0:02:10]} 26. Qxa7 {[%clk 0:01:08]}  b5 {[%clk 0:02:03]} 27. Qe3 {[%clk 0:01:05]}  Rfe8 {[%clk 0:02:03]} 28. Qg3 {[%clk 0:00:53]}  Rxe6 {[%clk 0:02:03]} 29. Rxe6 {[%clk 0:00:50]}  Rxe6 {[%clk 0:02:04]} 30. h4 {[%clk 0:00:42]}  Re4 {[%clk 0:01:47]} 31. Qxg6 {[%clk 0:00:32]}  Rxf4 {[%clk 0:01:39]} 32. Qe8+ {[%clk 0:00:32]}  Kh7 {[%clk 0:01:39]} 33. Qh5+ {[%clk 0:00:32]}  Kg8 {[%clk 0:01:39]} 34. Re1 {[%clk 0:00:32]}  Re4 {[%clk 0:01:01]} 35. Rxe4 {[%clk 0:00:31]}  dxe4 {[%clk 0:01:02]} 36. Qe8+ {[%clk 0:00:32]}  Kh7 {[%clk 0:00:59]} 37. Qxe4+ {[%clk 0:00:33]}  Kh8 {[%clk 0:00:58]} 38. Qd4 {[%clk 0:00:31]}  Qg3 {[%clk 0:00:52]} 39. Qe4 {[%clk 0:00:19]}  Qf2 {[%clk 0:00:41]} 40. b4 {[%clk 0:00:16]}  c5 {[%clk 0:00:36]} 41. bxc5 {[%clk 0:00:15]}  Qxc5 {[%clk 0:00:37]} 42. Kh2 {[%clk 0:00:11]}  Qc7+ {[%clk 0:00:29]} 43. g3 {[%clk 0:00:10]}  Qxc3 {[%clk 0:00:27]} 44. Qe8+ {[%clk 0:00:10]}  Kh7 {[%clk 0:00:27]} 45. Qh5+ {[%clk 0:00:11]}  Kg8 {[%clk 0:00:27]} 46. Qd5+ {[%clk 0:00:08]}  Kh8 {[%clk 0:00:27]} 47. Kh3 {[%clk 0:00:08]}  b4 {[%clk 0:00:27]} 48. h5 {[%clk 0:00:07]}  Qe1 {[%clk 0:00:22]} 49. Kh4 {[%clk 0:00:04]}  Kh7 {[%clk 0:00:19]} 50. Qf5+ {[%clk 0:00:04]}  Kh8 {[%clk 0:00:19]} 51. Qc8+ {[%clk 0:00:05]}  Kh7 {[%clk 0:00:19]} 52. Qc2+ {[%clk 0:00:05]}  Kh8 {[%clk 0:00:19]} 53. Kg4 {[%clk 0:00:05]}  Qe6+ {[%clk 0:00:19]} 54. Kh4 {[%clk 0:00:03]}  Qe1 {[%clk 0:00:19]} 55. Qc8+ {[%clk 0:00:02]}  Kh7 {[%clk 0:00:19]} 56. Qf5+ {[%clk 0:00:02]}  Kg8 {[%clk 0:00:20]} 57. Qd5+ {[%clk 0:00:03]}  Kh8 {[%clk 0:00:20]} 58. Kg4 {[%clk 0:00:04]}  Qe7 {[%clk 0:00:17]} 59. Kf5 {[%clk 0:00:03]}  Qe1 {[%clk 0:00:16]} 60. Kg6 {[%clk 0:00:03]}  Qb1+ {[%clk 0:00:17]} 61. Kf7 {[%clk 0:00:03]}  Kh7 {[%clk 0:00:12]} 62. Qd8 {[%clk 0:00:03]}  Qxa2+ {[%clk 0:00:12]} 63. Kf8 {[%clk 0:00:03]}  Qg8+ {[%clk 0:00:11]} 0-1


[Site "https://www.chess.com"]

[Event "Titled Tuesday Blitz February 15 Early 2022"]
[White "Nesterov, Arseniy"]
[Black "Przybylski, Wojciech"]
[WhiteFideId "24198455"]
[BlackFideId "1117599"]
[WhiteElo "2489"]
[BlackElo "2133"]
[Result "1-0"]
[Round "03"]
[TimeControl "180+1"]
[Date "2022.02.15"]
[WhiteClock "0:00:13"]
[BlackClock "0:00:03"]

1. d4 {[%clk 0:03:00]}  Nf6 {[%clk 0:02:58]} 2. c4 {[%clk 0:03:00]}  e6 {[%clk 0:02:59]} 3. Nf3 {[%clk 0:02:59]}  b6 {[%clk 0:02:58]} 4. g3 {[%clk 0:02:53]}  Ba6 {[%clk 0:02:58]} 5. Qc2 {[%clk 0:02:53]}  Bb7 {[%clk 0:02:57]} 6. Bg2 {[%clk 0:02:53]}  Be7 {[%clk 0:02:55]} 7. O-O {[%clk 0:02:47]}  O-O {[%clk 0:02:55]} 8. Nc3 {[%clk 0:02:46]}  c5 {[%clk 0:02:53]} 9. d5 {[%clk 0:02:36]}  exd5 {[%clk 0:02:53]} 10. cxd5 {[%clk 0:02:36]}  d6 {[%clk 0:02:49]} 11. e4 {[%clk 0:02:33]}  Nbd7 {[%clk 0:02:48]} 12. Bf4 {[%clk 0:02:18]}  Ng4 {[%clk 0:02:37]} 13. Rad1 {[%clk 0:02:10]}  a6 {[%clk 0:02:33]} 14. a4 {[%clk 0:02:10]}  Re8 {[%clk 0:02:28]} 15. Rfe1 {[%clk 0:02:07]}  Nge5 {[%clk 0:02:22]} 16. Nxe5 {[%clk 0:02:05]}  Nxe5 {[%clk 0:02:20]} 17. Bc1 {[%clk 0:01:41]}  Bf6 {[%clk 0:02:00]} 18. f4 {[%clk 0:01:27]}  Nd7 {[%clk 0:01:58]} 19. h3 {[%clk 0:01:27]}  g6 {[%clk 0:01:43]} 20. Kh2 {[%clk 0:01:27]}  Bg7 {[%clk 0:01:41]} 21. b3 {[%clk 0:01:22]}  Rc8 {[%clk 0:01:23]} 22. Bb2 {[%clk 0:01:20]}  Qc7 {[%clk 0:01:19]} 23. Ne2 {[%clk 0:01:05]}  b5 {[%clk 0:01:17]} 24. Bxg7 {[%clk 0:01:04]}  Kxg7 {[%clk 0:01:17]} 25. axb5 {[%clk 0:00:58]}  axb5 {[%clk 0:01:16]} 26. Qb2+ {[%clk 0:00:58]}  Kg8 {[%clk 0:01:15]} 27. b4 {[%clk 0:00:24]}  Rb8 {[%clk 0:00:22]} 28. Nc3 {[%clk 0:00:22]}  Bc8 {[%clk 0:00:19]} 29. e5 {[%clk 0:00:20]}  dxe5 {[%clk 0:00:15]} 30. d6 {[%clk 0:00:21]}  Qb6 {[%clk 0:00:13]} 31. fxe5 {[%clk 0:00:16]}  Nxe5 {[%clk 0:00:09]} 32. Nd5 {[%clk 0:00:12]}  Qxd6 {[%clk 0:00:08]} 33. bxc5 {[%clk 0:00:13]}  Qxc5 {[%clk 0:00:03]} 34. Rxe5 {[%clk 0:00:13]}  Qf8 {[%clk 0:00:02]} 35. Nf6+ {[%clk 0:00:13]}  Kg7 {[%clk 0:00:02]} 36. Nxe8+ {[%clk 0:00:13]}  Kg8 {[%clk 0:00:01]} 37. Nf6+ {[%clk 0:00:12]}  Kg7 {[%clk 0:00:02]} 38. Re8 {[%clk 0:00:13]}  Qc5 {[%clk 0:00:02]} 39. Nh5+ {[%clk 0:00:13]}  Kh6 {[%clk 0:00:02]} 40. Qg7+ {[%clk 0:00:12]}  Kxh5 {[%clk 0:00:02]} 41. Qxh7+ {[%clk 0:00:12]}  Kg5 {[%clk 0:00:03]} 42. Qh4+ {[%clk 0:00:12]}  Kf5 {[%clk 0:00:03]} 43. Qf4# {[%clk 0:00:13]} 1-0


[Site "https://www.chess.com"]

[Event "Titled Tuesday Blitz February 15 Early 2022"]
[White "Nguyen, Ngoc Truong Son"]
[Black "Rakhimgaliyev, Yerlan"]
[WhiteFideId "12401110"]
[BlackFideId "13705148"]
[WhiteElo "2596"]
[BlackElo "2261"]
[Result "1-0"]
[Round "03"]
[TimeControl "180+1"]
[Date "2022.02.15"]
[WhiteClock "0:01:27"]
[BlackClock "0:01:41"]

1. e4 {[%clk 0:03:00]}  e5 {[%clk 0:02:58]} 2. Nf3 {[%clk 0:02:59]}  d6 {[%clk 0:02:58]} 3. d4 {[%clk 0:02:56]}  exd4 {[%clk 0:02:59]} 4. Nxd4 {[%clk 0:02:57]}  Nf6 {[%clk 0:02:59]} 5. Nc3 {[%clk 0:02:57]}  Be7 {[%clk 0:03:00]} 6. Be2 {[%clk 0:02:47]}  O-O {[%clk 0:02:59]} 7. Be3 {[%clk 0:02:46]}  Re8 {[%clk 0:02:57]} 8. O-O {[%clk 0:02:43]}  Bf8 {[%clk 0:02:58]} 9. Bf3 {[%clk 0:02:37]}  Nbd7 {[%clk 0:02:58]} 10. Re1 {[%clk 0:02:26]}  c6 {[%clk 0:02:46]} 11. g3 {[%clk 0:02:20]}  Nc5 {[%clk 0:02:44]} 12. Bf4 {[%clk 0:02:14]}  d5 {[%clk 0:02:38]} 13. exd5 {[%clk 0:02:11]}  Rxe1+ {[%clk 0:02:39]} 14. Qxe1 {[%clk 0:02:12]}  cxd5 {[%clk 0:02:39]} 15. Bg5 {[%clk 0:02:03]}  h6 {[%clk 0:02:34]} 16. Bxf6 {[%clk 0:02:02]}  Qxf6 {[%clk 0:02:34]} 17. Rd1 {[%clk 0:02:02]}  Be6 {[%clk 0:02:26]} 18. Nxd5 {[%clk 0:01:59]}  Bxd5 {[%clk 0:02:26]} 19. Bxd5 {[%clk 0:02:00]}  Rd8 {[%clk 0:02:26]} 20. c4 {[%clk 0:02:00]}  Na4 {[%clk 0:02:18]} 21. Ne6 {[%clk 0:01:35]}  fxe6 {[%clk 0:02:14]} 22. Qxe6+ {[%clk 0:01:35]}  Kh7 {[%clk 0:02:10]} 23. Qxf6 {[%clk 0:01:34]}  Rxd5 {[%clk 0:02:04]} 24. Qxf8 {[%clk 0:01:33]}  Rxd1+ {[%clk 0:02:03]} 25. Kg2 {[%clk 0:01:33]}  Nxb2 {[%clk 0:01:55]} 26. Qf5+ {[%clk 0:01:29]}  Kh8 {[%clk 0:01:55]} 27. Qc2 {[%clk 0:01:30]}  Rd4 {[%clk 0:01:42]} 28. Qxb2 {[%clk 0:01:26]}  Rxc4 {[%clk 0:01:43]} 29. Qxb7 {[%clk 0:01:25]}  Ra4 {[%clk 0:01:41]} 30. Qc8+ {[%clk 0:01:26]}  Kh7 {[%clk 0:01:41]} 31. Qc2+ {[%clk 0:01:27]} 1-0


[Site "https://www.chess.com"]

[Event "Titled Tuesday Blitz February 15 Early 2022"]
[White "Nurmanova, Alua"]
[Black "Avila Pavas, Santiago"]
[WhiteFideId "13729390"]
[BlackFideId "4437128"]
[WhiteElo "1851"]
[BlackElo "2242"]
[Result "1-0"]
[Round "03"]
[TimeControl "180+1"]
[Date "2022.02.15"]
[WhiteClock "0:00:44"]
[BlackClock "0:01:46"]

1. e4 {[%clk 0:03:00]}  Nf6 {[%clk 0:03:00]} 2. e5 {[%clk 0:03:00]}  Nd5 {[%clk 0:03:01]} 3. d4 {[%clk 0:03:01]}  d6 {[%clk 0:03:02]} 4. Nf3 {[%clk 0:03:02]}  g6 {[%clk 0:03:02]} 5. Bc4 {[%clk 0:03:00]}  Nb6 {[%clk 0:03:03]} 6. Bb3 {[%clk 0:03:00]}  Bg7 {[%clk 0:03:03]} 7. Ng5 {[%clk 0:02:35]}  e6 {[%clk 0:03:03]} 8. Qf3 {[%clk 0:02:35]}  Qe7 {[%clk 0:03:03]} 9. Ne4 {[%clk 0:02:31]}  dxe5 {[%clk 0:03:04]} 10. Bg5 {[%clk 0:02:30]}  Qb4+ {[%clk 0:03:04]} 11. c3 {[%clk 0:02:29]}  Qa5 {[%clk 0:03:04]} 12. Bf6 {[%clk 0:02:14]}  O-O {[%clk 0:03:04]} 13. Bxg7 {[%clk 0:02:13]}  Kxg7 {[%clk 0:03:05]} 14. Qf6+ {[%clk 0:02:12]}  Kg8 {[%clk 0:03:06]} 15. Qg5 {[%clk 0:01:49]}  N6d7 {[%clk 0:02:58]} 16. Nbd2 {[%clk 0:01:33]}  Nc6 {[%clk 0:02:44]} 17. Nc4 {[%clk 0:01:16]}  Qb5 {[%clk 0:02:44]} 18. Qh6 {[%clk 0:01:12]}  exd4 {[%clk 0:02:38]} 19. Ng5 {[%clk 0:01:09]}  Nf6 {[%clk 0:02:39]} 20. O-O {[%clk 0:00:57]}  dxc3 {[%clk 0:02:30]} 21. Ne3 {[%clk 0:00:46]}  e5 {[%clk 0:02:04]} 22. Nd5 {[%clk 0:00:44]}  Nxd5 {[%clk 0:01:46]} 23. Qxh7# {[%clk 0:00:44]} 1-0


[Site "https://www.chess.com"]

[Event "Titled Tuesday Blitz February 15 Early 2022"]
[White "Osmak, Yuliia"]
[Black "Magallanes, Rey Jomar"]
[WhiteFideId "14101602"]
[BlackFideId "5205948"]
[WhiteElo "2302"]
[BlackElo "2211"]
[Result "1-0"]
[Round "03"]
[TimeControl "180+1"]
[Date "2022.02.15"]
[WhiteClock "0:00:06"]
[BlackClock "0:00:12"]

1. e4 {[%clk 0:03:00]}  e5 {[%clk 0:02:59]} 2. Nf3 {[%clk 0:03:00]}  Nc6 {[%clk 0:03:00]} 3. Bb5 {[%clk 0:02:59]}  a6 {[%clk 0:02:59]} 4. Ba4 {[%clk 0:02:58]}  Nf6 {[%clk 0:02:59]} 5. Qe2 {[%clk 0:02:54]}  b5 {[%clk 0:02:54]} 6. Bb3 {[%clk 0:02:53]}  Be7 {[%clk 0:02:53]} 7. O-O {[%clk 0:02:46]}  O-O {[%clk 0:02:53]} 8. c3 {[%clk 0:02:46]}  d5 {[%clk 0:02:48]} 9. d3 {[%clk 0:02:44]}  Be6 {[%clk 0:02:45]} 10. Rd1 {[%clk 0:02:22]}  d4 {[%clk 0:02:43]} 11. Bxe6 {[%clk 0:02:14]}  fxe6 {[%clk 0:02:44]} 12. a4 {[%clk 0:02:13]}  Qd6 {[%clk 0:02:32]} 13. Na3 {[%clk 0:02:06]}  Qc5 {[%clk 0:02:15]} 14. Bd2 {[%clk 0:01:54]}  Rab8 {[%clk 0:02:08]} 15. axb5 {[%clk 0:01:51]}  axb5 {[%clk 0:02:07]} 16. Nc2 {[%clk 0:01:43]}  dxc3 {[%clk 0:01:59]} 17. bxc3 {[%clk 0:01:41]}  Nh5 {[%clk 0:01:55]} 18. g3 {[%clk 0:01:36]}  Rf7 {[%clk 0:01:41]} 19. Nfe1 {[%clk 0:01:23]}  g6 {[%clk 0:01:23]} 20. Ne3 {[%clk 0:01:12]}  Rbf8 {[%clk 0:01:19]} 21. Ng4 {[%clk 0:01:12]}  Kh8 {[%clk 0:00:58]} 22. Be3 {[%clk 0:01:10]}  Qxc3 {[%clk 0:00:47]} 23. Rac1 {[%clk 0:01:09]}  Nd4 {[%clk 0:00:47]} 24. Qa2 {[%clk 0:00:34]}  Qa3 {[%clk 0:00:46]} 25. Qxa3 {[%clk 0:00:27]}  Bxa3 {[%clk 0:00:47]} 26. Bxd4 {[%clk 0:00:26]}  exd4 {[%clk 0:00:42]} 27. Rc6 {[%clk 0:00:22]}  e5 {[%clk 0:00:33]} 28. Nc2 {[%clk 0:00:20]}  Bd6 {[%clk 0:00:31]} 29. Rf1 {[%clk 0:00:17]}  Rf3 {[%clk 0:00:27]} 30. Ne1 {[%clk 0:00:16]}  R3f7 {[%clk 0:00:28]} 31. f3 {[%clk 0:00:14]}  b4 {[%clk 0:00:25]} 32. Rf2 {[%clk 0:00:13]}  Nf6 {[%clk 0:00:25]} 33. Nxf6 {[%clk 0:00:13]}  Rxf6 {[%clk 0:00:26]} 34. Rb2 {[%clk 0:00:12]}  Rxf3 {[%clk 0:00:23]} 35. Nxf3 {[%clk 0:00:12]}  Rxf3 {[%clk 0:00:24]} 36. Rd2 {[%clk 0:00:12]}  g5 {[%clk 0:00:20]} 37. Kg2 {[%clk 0:00:11]}  g4 {[%clk 0:00:20]} 38. Ra6 {[%clk 0:00:10]}  Kg7 {[%clk 0:00:19]} 39. Ra7 {[%clk 0:00:09]}  h5 {[%clk 0:00:19]} 40. Rb7 {[%clk 0:00:09]}  Kf6 {[%clk 0:00:19]} 41. Rd1 {[%clk 0:00:07]}  Ke6 {[%clk 0:00:19]} 42. Rd2 {[%clk 0:00:07]}  Re3 {[%clk 0:00:19]} 43. Kf2 {[%clk 0:00:06]}  Rf3+ {[%clk 0:00:20]} 44. Kg2 {[%clk 0:00:07]}  h4 {[%clk 0:00:20]} 45. gxh4 {[%clk 0:00:07]}  Rh3 {[%clk 0:00:20]} 46. h5 {[%clk 0:00:06]}  Kf6 {[%clk 0:00:17]} 47. Rf2+ {[%clk 0:00:06]}  Kg7 {[%clk 0:00:14]} 48. Rf5 {[%clk 0:00:05]}  Rxd3 {[%clk 0:00:14]} 49. Rg5+ {[%clk 0:00:05]}  Kh6 {[%clk 0:00:13]} 50. Rxg4 {[%clk 0:00:05]}  Kxh5 {[%clk 0:00:14]} 51. Rg3 {[%clk 0:00:06]}  Rd2+ {[%clk 0:00:13]} 52. Kh3 {[%clk 0:00:06]}  Re2 {[%clk 0:00:12]} 53. Rb8 {[%clk 0:00:06]} 1-0


[Site "https://www.chess.com"]

[Event "Titled Tuesday Blitz February 15 Early 2022"]
[White "Osmonbekov, Talaibek"]
[Black "Ezat, Mohamed"]
[WhiteFideId "2017253"]
[BlackFideId "10600906"]
[WhiteElo "2135"]
[BlackElo "2386"]
[Result "0-1"]
[Round "03"]
[TimeControl "180+1"]
[Date "2022.02.15"]
[WhiteClock "0:01:17"]
[BlackClock "0:02:04"]

1. d4 {[%clk 0:03:00]}  Nf6 {[%clk 0:03:00]} 2. Nc3 {[%clk 0:03:00]}  g6 {[%clk 0:03:00]} 3. Bf4 {[%clk 0:03:00]}  d5 {[%clk 0:02:59]} 4. e3 {[%clk 0:03:01]}  Bg7 {[%clk 0:02:59]} 5. h4 {[%clk 0:03:01]}  O-O {[%clk 0:03:00]} 6. h5 {[%clk 0:03:01]}  c5 {[%clk 0:02:58]} 7. Be2 {[%clk 0:02:53]}  Nc6 {[%clk 0:02:57]} 8. hxg6 {[%clk 0:02:49]}  hxg6 {[%clk 0:02:56]} 9. Nf3 {[%clk 0:02:46]}  Bg4 {[%clk 0:02:53]} 10. Ne5 {[%clk 0:02:42]}  Bxe2 {[%clk 0:02:51]} 11. Qxe2 {[%clk 0:02:43]}  cxd4 {[%clk 0:02:51]} 12. exd4 {[%clk 0:02:41]}  Nxd4 {[%clk 0:02:50]} 13. Qd3 {[%clk 0:02:41]}  Ne6 {[%clk 0:02:49]} 14. Bd2 {[%clk 0:02:26]}  d4 {[%clk 0:02:41]} 15. Ne4 {[%clk 0:02:21]}  Qd5 {[%clk 0:02:41]} 16. Nxf6+ {[%clk 0:02:13]}  exf6 {[%clk 0:02:40]} 17. Qh3 {[%clk 0:02:12]}  Qxe5+ {[%clk 0:02:39]} 18. Kd1 {[%clk 0:02:09]}  Rfe8 {[%clk 0:02:22]} 19. Qh7+ {[%clk 0:02:07]}  Kf8 {[%clk 0:02:21]} 20. Bh6 {[%clk 0:02:07]}  Bxh6 {[%clk 0:02:19]} 21. Qxh6+ {[%clk 0:02:02]}  Ke7 {[%clk 0:02:19]} 22. Re1 {[%clk 0:02:01]}  Qh5+ {[%clk 0:02:17]} 23. Qxh5 {[%clk 0:02:00]}  gxh5 {[%clk 0:02:17]} 24. Kd2 {[%clk 0:01:58]}  Rg8 {[%clk 0:02:16]} 25. g3 {[%clk 0:01:58]}  Rg4 {[%clk 0:02:15]} 26. Rh1 {[%clk 0:01:52]}  Rh8 {[%clk 0:02:14]} 27. Rae1 {[%clk 0:01:52]}  Kd6 {[%clk 0:02:13]} 28. Kd3 {[%clk 0:01:45]}  h4 {[%clk 0:02:10]} 29. Rh3 {[%clk 0:01:43]}  Ng5 {[%clk 0:02:09]} 30. Rxh4 {[%clk 0:01:38]}  Rhxh4 {[%clk 0:02:08]} 31. gxh4 {[%clk 0:01:39]}  Rxh4 {[%clk 0:02:07]} 32. Re8 {[%clk 0:01:34]}  Ne6 {[%clk 0:02:07]} 33. Ra8 {[%clk 0:01:28]}  a6 {[%clk 0:02:07]} 34. Rb8 {[%clk 0:01:28]}  Rh2 {[%clk 0:02:06]} 35. f3 {[%clk 0:01:20]}  Rf2 {[%clk 0:02:04]} 36. Rxb7 {[%clk 0:01:17]}  Nc5+ {[%clk 0:02:04]} 0-1


[Site "https://www.chess.com"]